[Event "44th Chess Olympiad Women 2022"]
[Site "Chennai"]
[Date "2022.08.09"]
[Round "11.18"]
[White "Avila Fraire, Ameyalli"]
[Black "Raccanello, Marianna"]
[Result "0-1"]
[ECO "B26"]
[WhiteElo "1907"]
[BlackElo "2067"]
[Annotator "NA RC"]
[PlyCount "114"]
[EventDate "2022.07.29"]
[EventType "team-tourn"]
[EventCountry "IND"]
[SourceTitle "playchess.com"]
[Source "ChessBase"]
[SourceQuality "1"]
[WhiteTeam "Mexico"]
[BlackTeam "Italy"]
[WhiteTeamCountry "MEX"]
[BlackTeamCountry "ITA"]
[TimeControl "40/5400+30:1800+30"]

1. e4 {[%emt 0:00:05]} c5 {[%emt 0:00:07]} 2. Nc3 {[%emt 0:00:10]} Nc6 {[%emt 0:00:15]} 3. g3 {[%emt 0:00:13]} g6 {[%emt 0:00:19]} 4. Bg2 {[%emt 0:00:07]} Bg7 {[%emt 0:00:05]} 5. d3 {[%emt 0:00:17]} e6 {[%emt 0:00:25]} 6. Be3 {[%emt 0:00:28]} d6 {[%emt 0:00:08]} 7. Qd2 {[%emt 0:00:07]} Nge7 {[%emt 0:01:28]} 8. Bh6 {[%emt 0:01:08]} O-O {[%emt 0:03:19]} 9. h4 {[%emt 0:00:33]} Bxh6 {[%emt 0:04:26]} 10. Qxh6 {[%emt 0:00:09]} f6 {[%emt 0:00:17]} 11. Qd2 {[%emt 0:00:30]} e5 {[%emt 0:13:36]} 12. h5 {[%emt 0:10:26]} g5 {[%emt 0:00:57]} 13. f4 {[%emt 0:00:19]} h6 {[%emt 0:00:53]} 14. Nf3 {[%emt 0:12:21]} Nd4 {[%emt 0:06:00]} 15. Nxg5 {[%emt 0:25:27]} fxg5 {[%emt 0:02:51]} 16. fxg5 {[%emt 0:00:05]} Bg4 {[%emt 0:19:57]} 17. gxh6 {[%emt 0:00:09]} Nec6 {[%emt 0:00:20]} 18. Nd5 {[%emt 0:08:08]} Kh7 {[%emt 0:05:23]} 19. c3 {[%emt 0:03:08]} Nf3+ {[%emt 0:00:36]} 20. Bxf3 {[%emt 0:00:12]} Bxf3 {[%emt 0:00:43]} 21. Rf1 {[%emt 0:02:34]} Rf7 {[%emt 0:13:46]} 22. Qe3 {[%emt 0:05:26]} Qf8 {[%emt 0:00:16]} 23. Nc7 {[%emt 0:13:58]} Rxc7 {[%emt 0:01:20]} 24. Rxf3 {[%emt 0:00:06]} Qxh6 {[%emt 0:01:41]} 25. Ke2 {[%emt 0:03:46]} Qxe3+ {[%emt 0:01:20]} 26. Kxe3 {[%emt 0:00:06]} Rg8 {[%emt 0:00:19]} 27. Rg1 {[%emt 0:03:48]} Rcg7 {[%emt 0:03:01]} 28. Kf2 {[%emt 0:00:36]} Nd8 {[%emt 0:01:07]} 29. Rf5 {[%emt 0:02:06]} Ne6 {[%emt 0:02:42]} 30. Rf6 {[%emt 0:05:23]} Rf8 {[%emt 0:00:33]} 31. Rf5 {[%emt 0:01:18]} Rgf7 {[%emt 0:02:41]} 32. g4 {[%emt 0:00:53]} Ng7 {[%emt 0:00:15]} 33. Rxf7 {[%emt 0:02:05]} Rxf7+ {[%emt 0:00:05]} 34. Ke3 {[%emt 0:00:04]} Kh6 {[%emt 0:03:53]} 35. d4 {[%emt 0:00:29]} cxd4+ {[%emt 0:00:33]} 36. cxd4 {[%emt 0:00:05]} Ne6 {[%emt 0:01:06]} 37. dxe5 {[%emt 0:01:42]} dxe5 {[%emt 0:00:06]} 38. Rd1 {[%emt 0:00:31]} Nd4 {[%emt 0:00:07]} 39. Rg1 {[%emt 0:00:19]} Kg5 {[%emt 0:00:45]} 40. Rg3 {[%emt 0:00:30]} Rf4 {[%emt 0:01:24]} 41. Rg2 {[%emt 0:07:08]} Rf3+ {[%emt 0:03:34]} 42. Kd2 {[%emt 0:00:10]} Ne6 {[%emt 0:02:06]} 43. Ke2 {[%emt 0:15:50]} Rf4 {[%emt 0:00:41]} 44. Rh2 {[%emt 0:03:31]} Rxe4+ {[%emt 0:01:32]} 45. Kf3 {[%emt 0:01:52]} Rxg4 {[%emt 0:03:12]} 46. h6 {[%emt 0:00:08]} Nd4+ {[%emt 0:00:27]} 47. Kf2 {[%emt 0:01:11]} Rf4+ {[%emt 0:00:12]} 48. Kg2 {[%emt 0:01:20]} Rf8 {[%emt 0:00:19]} 49. h7 {[%emt 0:00:06]} Rh8 {[%emt 0:00:09]} 50. Kf2 {[%emt 0:00:14]} Kg6 {[%emt 0:00:15]} 51. Ke3 {[%emt 0:02:25]} Rxh7 {[%emt 0:00:09]} 52. Rxh7 {[%emt 0:01:20]} Kxh7 {[%emt 0:00:05]} 53. Ke4 {[%emt 0:00:03]} Nc6 {[%emt 0:00:16]} 54. Kf5 {[%emt 0:00:34]} Kg7 {[%emt 0:00:13]} 55. a3 {[%emt 0:01:34]} Kf7 {[%emt 0:00:23]} 56. b4 {[%emt 0:00:07]} b5 {[%emt 0:00:09]} 57. Ke4 {[%emt 0:01:05]} Ke6 {[%emt 0:00:26]} 0-1

[Event "44th Chess Olympiad Women 2022"]
[Site "Chennai"]
[Date "2022.08.09"]
[Round "11.19"]
[White "Cori T., Deysi"]
[Black "Khegay, Anjela"]
[Result "1-0"]
[ECO "A49"]
[WhiteElo "2371"]
[BlackElo "2131"]
[Annotator "RC"]
[PlyCount "67"]
[EventDate "2022.07.29"]
[EventType "team-tourn"]
[EventCountry "IND"]
[SourceTitle "playchess.com"]
[Source "ChessBase"]
[SourceQuality "1"]
[WhiteTeam "Peru"]
[BlackTeam "SGP"]
[WhiteTeamCountry "PER"]
[TimeControl "40/5400+30:1800+30"]

1. Nf3 {[%emt 0:00:08]} Nf6 {[%emt 0:00:08]} 2. b3 {[%emt 0:00:12]} g6 {[%emt 0:00:11]} 3. Bb2 {[%emt 0:00:06]} Bg7 {[%emt 0:00:16]} 4. g3 {[%emt 0:00:56]} O-O {[%emt 0:00:08]} 5. Bg2 {[%emt 0:00:01]} d6 {[%emt 0:00:17]} 6. d4 {[%emt 0:00:21]} Nbd7 {[%emt 0:00:50]} 7. O-O {[%emt 0:00:07]} c6 {[%emt 0:02:10]} 8. Nbd2 {[%emt 0:01:38]} Qc7 {[%emt 0:00:15]} 9. a4 {[%emt 0:01:06]} b6 {[%emt 0:01:50]} 10. Re1 {[%emt 0:02:35]} Bb7 {[%emt 0:00:48]} 11. e4 {[%emt 0:02:49]} e5 {[%emt 0:02:22]} 12. a5 {[%emt 0:11:59]} Ba6 {[%emt 0:02:11]} 13. c4 {[%emt 0:03:42]} c5 {[%emt 0:08:50]} 14. dxe5 {[%emt 0:03:57]} dxe5 {[%emt 0:02:56]} 15. Nb1 {[%emt 0:00:12]} Rfd8 {[%emt 0:03:20]} 16. Nc3 {[%emt 0:03:56]} Nf8 {[%emt 0:02:26]} 17. Nd5 {[%emt 0:00:04]} Nxd5 {[%emt 0:00:29]} 18. exd5 {[%emt 0:00:02]} f6 {[%emt 0:00:22]} 19. Nd2 {[%emt 0:00:43]} Rab8 {[%emt 0:01:35]} 20. axb6 {[%emt 0:02:09]} Qxb6 {[%emt 0:00:52]} 21. Bc3 {[%emt 0:00:32]} Re8 {[%emt 0:01:39]} 22. Ba5 {[%emt 0:01:34]} Qb7 {[%emt 0:09:12]} 23. Ne4 {[%emt 0:00:04]} Qxb3 {[%emt 0:00:13]} 24. Qxb3 {[%emt 0:00:20]} Rxb3 {[%emt 0:00:02]} 25. Nxc5 {[%emt 0:00:15]} Bxc4 {[%emt 0:00:06]} 26. Nxb3 {[%emt 0:01:19]} Bxb3 {[%emt 0:00:03]} 27. d6 {[%emt 0:10:06]} Be6 {[%emt 0:00:17]} 28. Bc6 {[%emt 0:01:17]} Bd7 {[%emt 0:00:42]} 29. Rec1 {[%emt 0:01:06]} f5 {[%emt 0:09:35]} 30. Bxd7 {[%emt 0:00:32]} Nxd7 {[%emt 0:00:05]} 31. Rc7 {[%emt 0:00:03]} Nb8 {[%emt 0:01:20]} 32. d7 {[%emt 0:00:38]} Rf8 {[%emt 0:00:33]} 33. d8=Q {[%emt 0:00:56]} Rxd8 {[%emt 0:00:20]} 34. Rxg7+ {[%emt 0:00:06]} 1-0

[Event "44th Chess Olympiad Women 2022"]
[Site "Chennai"]
[Date "2022.08.09"]
[Round "11.19"]
[White "Paredes Bustamante, Paula Elizab"]
[Black "Hng, Mei-Xian Eunice"]
[Result "1-0"]
[ECO "B07"]
[WhiteElo "2162"]
[BlackElo "1823"]
[Annotator "RC"]
[PlyCount "57"]
[EventDate "2022.07.29"]
[EventType "team-tourn"]
[EventCountry "IND"]
[SourceTitle "playchess.com"]
[Source "ChessBase"]
[SourceQuality "1"]
[WhiteTeam "Peru"]
[BlackTeam "SGP"]
[WhiteTeamCountry "PER"]
[TimeControl "40/5400+30:1800+30"]

1. e4 {[%emt 0:00:01]} d6 {[%emt 0:00:28]} 2. d4 {[%emt 0:00:02]} Nf6 {[%emt 0:00:06]} 3. Nc3 {[%emt 0:00:06]} g6 {[%emt 0:00:06]} 4. Be3 {[%emt 0:00:29]} Bg7 {[%emt 0:01:06]} 5. Qd2 {[%emt 0:00:21]} c6 {[%emt 0:01:36]} 6. O-O-O {[%emt 0:00:18]} b5 {[%emt 0:02:38]} 7. f3 {[%emt 0:08:33]} b4 {[%emt 0:03:04]} 8. Nb1 {[%emt 0:00:13]} a5 {[%emt 0:01:56]} 9. Bh6 {[%emt 0:01:42]} Bxh6 {[%emt 0:05:10]} 10. Qxh6 {[%emt 0:00:02]} Qc7 {[%emt 0:00:06]} 11. Bc4 {[%emt 0:06:25]} Nbd7 {[%emt 0:06:24]} 12. Nh3 {[%emt 0:03:03]} Rf8 {[%emt 0:17:52]} 13. Bxf7+ {[%emt 0:10:45]} Rxf7 {[%emt 0:04:19]} 14. Ng5 {[%emt 0:00:02]} Ng8 {[%emt 0:03:24]} 15. Qh4 {[%emt 0:00:05]} Ndf6 {[%emt 0:02:03]} 16. e5 {[%emt 0:00:29]} h6 {[%emt 0:01:44]} 17. Nxf7 {[%emt 0:00:22]} Kxf7 {[%emt 0:00:59]} 18. exf6 {[%emt 0:00:06]} exf6 {[%emt 0:00:33]} 19. Rhe1 {[%emt 0:00:32]} Be6 {[%emt 0:02:29]} 20. f4 {[%emt 0:03:02]} f5 {[%emt 0:01:53]} 21. g4 {[%emt 0:01:32]} fxg4 {[%emt 0:03:56]} 22. Nd2 {[%emt 0:00:42]} Re8 {[%emt 0:01:19]} 23. Ne4 {[%emt 0:05:52]} Bf5 {[%emt 0:02:40]} 24. Ng5+ {[%emt 0:01:00]} Kf8 {[%emt 0:00:59]} 25. Rxe8+ {[%emt 0:00:05]} Kxe8 {[%emt 0:00:05]} 26. Re1+ {[%emt 0:00:08]} Kf8 {[%emt 0:00:38]} 27. Ne6+ {[%emt 0:00:27]} Bxe6 {[%emt 0:00:05]} 28. Rxe6 {[%emt 0:00:02]} Qf7 {[%emt 0:01:10]} 29. Qd8+ {[%emt 0:00:06]} 1-0

[Event "44th Chess Olympiad Women 2022"]
[Site "Chennai"]
[Date "2022.08.09"]
[Round "11.19"]
[White "Hng, Mei-En Emmanuelle"]
[Black "Caballero Quijano, Mitzy Mishell"]
[Result "1/2-1/2"]
[ECO "C13"]
[WhiteElo "1997"]
[BlackElo "2035"]
[Annotator "NA RC"]
[PlyCount "144"]
[EventDate "2022.07.29"]
[EventType "team-tourn"]
[EventCountry "IND"]
[SourceTitle "playchess.com"]
[Source "ChessBase"]
[SourceQuality "1"]
[WhiteTeam "SGP"]
[BlackTeam "Peru"]
[BlackTeamCountry "PER"]
[TimeControl "40/5400+30:1800+30"]

1. e4 {[%emt 0:00:15]} e6 {[%emt 0:00:04]} 2. d4 {[%emt 0:00:16]} d5 {[%emt 0:00:05]} 3. Nc3 {[%emt 0:00:14]} Nf6 {[%emt 0:00:06]} 4. Bg5 {[%emt 0:00:32]} dxe4 {[%emt 0:00:08]} 5. Nxe4 {[%emt 0:00:44]} Be7 {[%emt 0:00:12]} 6. Nxf6+ {[%emt 0:09:10]} Bxf6 {[%emt 0:00:10]} 7. Bxf6 {[%emt 0:00:14]} Qxf6 {[%emt 0:00:07]} 8. Nf3 {[%emt 0:01:30]} O-O {[%emt 0:00:12]} 9. c3 {[%emt 0:06:42]} Nd7 {[%emt 0:00:59]} 10. Bd3 {[%emt 0:05:20]} c5 {[%emt 0:03:36]} 11. Qe2 {[%emt 0:06:15]} cxd4 {[%emt 0:00:45]} 12. cxd4 {[%emt 0:02:22]} Nb6 {[%emt 0:02:07]} 13. O-O {[%emt 0:11:47]} Nd5 {[%emt 0:02:36]} 14. g3 {[%emt 0:02:00]} b6 {[%emt 0:05:23]} 15. Ne5 {[%emt 0:06:14]} Rd8 {[%emt 0:01:32]} 16. a3 {[%emt 0:04:47]} Bb7 {[%emt 0:03:22]} 17. Rfe1 {[%emt 0:15:51]} Ne7 {[%emt 0:03:36]} 18. Rad1 {[%emt 0:03:44]} g6 {[%emt 0:01:20]} 19. Be4 {[%emt 0:01:20]} Bd5 {[%emt 0:00:34]} 20. Rd3 {[%emt 0:03:42]} Qg7 {[%emt 0:01:02]} 21. Rc3 {[%emt 0:02:05]} Nf5 {[%emt 0:16:08]} 22. Bxf5 {[%emt 0:05:32]} exf5 {[%emt 0:00:06]} 23. Rc7 {[%emt 0:00:36]} Qf6 {[%emt 0:02:40]} 24. Rec1 {[%emt 0:01:55]} Qd6 {[%emt 0:03:58]} 25. Qe3 {[%emt 0:06:33]} Be6 {[%emt 0:15:02]} 26. Nf3 {[%emt 0:00:17]} Rd7 {[%emt 0:01:08]} 27. Rxd7 {[%emt 0:02:08]} Qxd7 {[%emt 0:00:15]} 28. Qe5 {[%emt 0:00:50]} Qd5 {[%emt 0:00:58]} 29. Ng5 {[%emt 0:01:28]} Qxe5 {[%emt 0:06:39]} 30. dxe5 {[%emt 0:00:01]} Bd5 {[%emt 0:00:06]} 31. f4 {[%emt 0:00:53]} h6 {[%emt 0:00:05]} 32. Nh3 {[%emt 0:00:03]} Be6 {[%emt 0:00:30]} 33. Kf2 {[%emt 0:00:37]} Rd8 {[%emt 0:00:32]} 34. Ke3 {[%emt 0:00:30]} a5 {[%emt 0:00:12]} 35. Ng1 {[%emt 0:00:51]} Rd5 {[%emt 0:01:02]} 36. a4 {[%emt 0:00:39]} Bd7 {[%emt 0:03:48]} 37. b3 {[%emt 0:00:06]} b5 {[%emt 0:00:04]} 38. Ne2 {[%emt 0:00:39]} bxa4 {[%emt 0:01:24]} 39. Nc3 {[%emt 0:00:27]} Rc5 {[%emt 0:03:08]} 40. Kd4 {[%emt 0:00:05]} Rc8 {[%emt 0:01:26]} 41. bxa4 {[%emt 0:03:45]} Bxa4 {[%emt 0:03:32]} 42. Ra1 {[%emt 0:01:20]} Rd8+ {[%emt 0:00:06]} 43. Ke3 {[%emt 0:00:42]} Bc2 {[%emt 0:00:14]} 44. Nb5 {[%emt 0:06:43]} a4 {[%emt 0:06:55]} 45. Nd4 {[%emt 0:02:41]} Bb3 {[%emt 0:06:22]} 46. Nxb3 {[%emt 0:01:06]} axb3 {[%emt 0:00:06]} 47. Rb1 {[%emt 0:00:07]} Rb8 {[%emt 0:00:03]} 48. Kd3 {[%emt 0:00:18]} g5 {[%emt 0:00:08]} 49. Kc3 {[%emt 0:14:17]} Kg7 {[%emt 0:00:07]} 50. Kb2 {[%emt 0:00:32]} Kg6 {[%emt 0:01:24]} 51. Ra1 {[%emt 0:00:12]} gxf4 {[%emt 0:05:00]} 52. gxf4 {[%emt 0:01:20]} Rb4 {[%emt 0:00:08]} 53. Rg1+ {[%emt 0:00:23]} Kh5 {[%emt 0:00:18]} 54. Rg7 {[%emt 0:00:28]} Rxf4 {[%emt 0:00:40]} 55. Rxf7 {[%emt 0:00:07]} Kg4 {[%emt 0:00:19]} 56. e6 {[%emt 0:02:19]} Rf2+ {[%emt 0:04:34]} 57. Kxb3 {[%emt 0:00:12]} Rxh2 {[%emt 0:00:11]} 58. Rg7+ {[%emt 0:01:35]} Kf4 {[%emt 0:01:03]} 59. e7 {[%emt 0:00:44]} Re2 {[%emt 0:00:06]} 60. Kc4 {[%emt 0:00:08]} h5 {[%emt 0:00:28]} 61. Kd5 {[%emt 0:00:17]} h4 {[%emt 0:01:03]} 62. Kd6 {[%emt 0:00:51]} h3 {[%emt 0:00:13]} 63. Rh7 {[%emt 0:01:16]} Kg3 {[%emt 0:02:57]} 64. Rg7+ {[%emt 0:00:06]} Kf3 {[%emt 0:04:21]} 65. Rh7 {[%emt 0:01:10]} Kg2 {[%emt 0:01:46]} 66. Rg7+ {[%emt 0:00:06]} Kf3 {[%emt 0:08:56]} 67. Rh7 {[%emt 0:00:06]} Kg4 {[%emt 0:01:15]} 68. Rg7+ {[%emt 0:00:08]} Kf3 {[%emt 0:00:12]} 69. Rh7 {[%emt 0:00:12]} Kg3 {[%emt 0:00:08]} 70. Rg7+ {[%emt 0:00:10]} Kf3 {[%emt 0:00:07]} 71. Rh7 {[%emt 0:00:41]} h2 {[%emt 0:00:39]} 72. Rxh2 {[%emt 0:00:01]} Rxh2 {[%emt 0:00:02]} 1/2-1/2

[Event "44th Chess Olympiad Women 2022"]
[Site "Chennai"]
[Date "2022.08.09"]
[Round "11.19"]
[White "Fang, Kun"]
[Black "Bravo Mallco, Kate Azumi"]
[Result "1-0"]
[ECO "B44"]
[WhiteElo "1766"]
[BlackElo "1958"]
[Annotator "TA"]
[PlyCount "163"]
[EventDate "2022.07.29"]
[EventType "team-tourn"]
[EventCountry "IND"]
[SourceTitle "playchess.com"]
[Source "ChessBase"]
[SourceQuality "1"]
[WhiteTeam "SGP"]
[BlackTeam "Peru"]
[BlackTeamCountry "PER"]
[TimeControl "40/5400+30:1800+30"]

{[%evp 16,163,-64,-53,0,0,0,-18,20,13,54,48,42,37,89,87,118,123,145,123,188,184,225,224,216,144,216,142,131,89,119,97,259,137,426,215,211,212,206,211,440,440,421,435,414,271,270,210,352,251,269,211,160,84,73,84,220,217,208,182,195,151,255,251,356,334,308,268,366,383,381,365,432,422,422,422,406,406,479,417,562,412,550,493,478,456,454,395,345,335,315,284,283,275,336,334,464,462,462,434,398,393,398,393,344,338,29958,29959,29959,29958,29968,29969,29969,29972,29968,29971,29971,29972,29973,29973,29973,29974,29975,29973,29972,29972,29975,29973,29972,29973,29972,29974,29974,29975,29976,29977,29978,29978,29979,29980,29979,29980,29984,29985,29986,29983,29983,29984,29984,29985]} 1. e4 {[%emt 0:00:06]} c5 {[%emt 0:00:09]} 2. Nf3 {[%emt 0:00:03]} e6 {[%emt 0:00:44]} 3. d4 {[%emt 0:00:09]} cxd4 {[%emt 0:00:02]} 4. Nxd4 {[%emt 0:00:04]} Nf6 {[%emt 0:00:10]} 5. Bd3 {[%emt 0:01:07]} Nc6 {[%emt 0:00:08]} 6. Be3 {[%emt 0:01:22]} d5 {[%emt 0:15:26]} 7. Nxc6 {[%emt 0:09:26]} bxc6 {[%emt 0:00:02]} 8. e5 {[%emt 0:04:02]} Nd7 {[%emt 0:00:03]} 9. f4 {[%emt 0:00:05]} Nc5 {[%emt 0:00:15] B44: Sicilian: Taimanov: 5 Nb5.} (9... Bc5 $15 10. Bxc5 Nxc5) 10. O-O {[%emt 0:02:53]} Be7 {[%emt 0:00:11]} 11. Nd2 {[%emt 0:07:23][%cal Bb1d2,Bd2b3,Bb3d4][%mdl 32]} O-O {[%emt 0:05:09] The position is equal.} 12. Nb3 {[%emt 0:12:00] [#]} Nd7 $146 {[%emt 0:43:39]} ({Predecessor:} 12... Nxd3 13. Qxd3 a5 14. Qd4 a4 15. Nc5 Ra5 16. Qc3 d4 17. Bxd4 {0-1 (17) Solino Nebot,L-Terrades Dalmau,A Aragon 1997}) 13. Nd4 {[%emt 0:23:13]} Bc5 {[%emt 0:04:59]} 14. c3 {[%emt 0:08:48]} (14. Qh5 g6 15. Qf3 Qb6 $11) (14. b4 {seems wilder.} Bb6 15. Qh5 g6 16. Qh6) 14... Bb6 {[%emt 0:07:07]} (14... g6 $14) 15. Rf3 $16 {[%emt 0:03:24][%cal Od3h7] Strongly threatening Bxh7+! White is much more active. The black rooks are badly placed.} Bxd4 {[%emt 0:03:16]} 16. cxd4 {[%emt 0:00:20]} g6 {[%emt 0:01:23]} 17. Rh3 {[%emt 0:08:26]} Qe7 {[%emt 0:02:34]} (17... f5 $16) 18. Rc1 $18 {[%emt 0:00:49]} Bb7 {[%emt 0:00:25]} 19. f5 $1 {[%emt 0:04:55]} exf5 {[%emt 0:00:27]} 20. Bh6 {[%emt 0:00:24][%cal Od3f5] And now Bxf5! would win.} Qe6 {[%emt 0:05:40]} (20... Rfe8 $16) 21. Bxf8 {[%emt 0:05:12]} Nxf8 {[%emt 0:00:02]} 22. Bf1 {[%emt 0:03:14]} Qe7 {[%emt 0:01:12]} 23. Qd2 {[%emt 0:01:01]} Nd7 $2 {[%emt 0:03:23]} (23... Ne6 $16 24. Qh6 Nf8) 24. b4 {[%emt 0:00:34]} (24. Qh6 $6 Nf8 25. Kh1 Re8 $16) (24. Rb3 $18 Nb6 25. Qh6) 24... f6 $2 {[%emt 0:01:36][%mdl 8192]} (24... a6 $16 25. Bd3 (25. Qh6 f6 $16) 25... Nf8) 25. exf6 {[%emt 0:02:02]} (25. b5 $142 Nb8 26. Qa5 fxe5 27. bxc6 Nxc6 28. Qxd5+ Kf8 29. Rxc6) 25... Nxf6 {[%emt 0:00:01]} 26. b5 $1 {[%emt 0:00:50]} Ne4 {[%emt 0:02:19]} 27. Qf4 {[%emt 0:00:24]} Rc8 {[%emt 0:03:02]} (27... Qd7 {is a better defense.} 28. Rb3 Re8 29. bxc6 Bxc6) 28. bxc6 {[%emt 0:00:15]} Bxc6 {[%emt 0:00:07]} 29. Ba6 {[%emt 0:00:24]} Rc7 {[%emt 0:00:50]} 30. Bb5 {[%emt 0:01:43]} Qb4 {[%emt 0:00:20] [#]} 31. Rd1 {[%emt 0:00:35]} Rc8 {[%emt 0:00:38]} (31... Qd6 $142 32. Qxd6 Nxd6 33. Bxc6 Rxc6) (31... Qe7 32. Bxc6) 32. Bxc6 {[%emt 0:00:15]} Rxc6 {[%emt 0:00:04]} 33. Qe5 {[%emt 0:00:14]} Qd6 {[%emt 0:00:56] [#]} 34. Qe8+ {[%emt 0:00:12]} (34. Qxd6 $142 $1 {Qd8+ would kill now.} Nxd6 35. Ra3) 34... Kg7 $16 {[%emt 0:00:06]} 35. Rb3 {[%emt 0:01:06][%cal Bh3b3,Bb3b7,Bb7a7,Ba7d7,Bd7d5,Bd5c5][%mdl 32]} Nf6 {[%emt 0:00:33]} (35... Rc2 $16 {might work better.}) 36. Rb7+ $18 {[%emt 0:00:30]} ({Don't play} 36. Qe5 Qc7 37. h3 Kh6) 36... Kh6 {[%emt 0:00:27]} 37. Qe3+ {[%emt 0:00:16]} f4 {[%emt 0:00:01]} 38. Qh3+ {[%emt 0:00:15]} Nh5 {[%emt 0:00:31]} (38... Kg5 $16 {was worth a try.} 39. Rxa7 h5) 39. Rxa7 {[%emt 0:00:53]} Qf6 {[%emt 0:01:21]} (39... Rc2 $142 40. a4 Ra2) 40. Rd7 {[%emt 0:00:32]} Rc2 {[%emt 0:00:38]} 41. Qb3 {[%emt 0:04:19]} Qf5 {[%emt 0:03:07] Threatens to win with ...f3.} 42. Rxd5 {[%emt 0:06:05]} ({Don't blunder} 42. Qxd5 $2 Qg4 43. Rf1 Nf6 44. Rxh7+ Kxh7 $19) 42... Qe4 {[%emt 0:00:42][%csl Gc2][%cal Re4g2]} 43. Qf3 {[%emt 0:00:52]} Qxf3 {[%emt 0:00:21]} 44. gxf3 {[%emt 0:00:02]} Rxa2 {[%emt 0:00:04][%mdl 4096] Endgame KRR-KRN} 45. Rc5 {[%emt 0:01:15]} Nf6 {[%emt 0:01:11]} 46. d5 {[%emt 0:04:25][%cal Bd4d5,Bd5d6][%mdl 32]} Nd7 {[%emt 0:00:02]} 47. Rc3 {[%emt 0:04:18]} Kg5 {[%emt 0:00:02]} 48. d6 {[%emt 0:04:26]} Kf6 {[%emt 0:01:32]} 49. Rc4 {[%emt 0:01:06]} g5 {[%emt 0:03:45]} 50. Re4 {[%emt 0:00:29]} Ra8 {[%emt 0:04:51]} 51. Rd5 {[%emt 0:04:04]} ({Weaker is} 51. Re7 Ne5 52. Rxh7 Nxf3+ 53. Kf2 Ne5 $18) 51... Rd8 {[%emt 0:01:29]} 52. h4 {[%emt 0:03:59]} h6 {[%emt 0:00:02]} 53. hxg5+ {[%emt 0:00:05]} hxg5 {[%emt 0:00:02]} 54. Rb5 {[%emt 0:01:28]} Nf8 {[%emt 0:00:29]} 55. Rd4 {[%emt 0:00:45]} Ne6 {[%emt 0:08:50]} 56. Rdd5 {[%emt 0:00:06]} Rd7 {[%emt 0:00:22]} 57. Kf2 {[%emt 0:00:28]} Ng7 {[%emt 0:01:19]} 58. Ke2 {[%emt 0:01:04]} Ne8 {[%emt 0:00:06]} 59. Rf5+ {[%emt 0:00:14]} Kg6 {[%emt 0:00:19]} 60. Rxg5+ {[%emt 0:00:07]} Kf6 $2 {[%emt 0:00:02]} (60... Kf7 $18 61. Rbf5+ Ke6 62. Re5+ Kf7 63. Rgf5+ Nf6 64. Rxf4 Rxd6) 61. Rbf5+ {[%emt 0:00:28] White mates.} Ke6 {[%emt 0:00:18]} 62. Re5+ {[%emt 0:00:25]} Kf7 {[%emt 0:00:59]} 63. Rgf5+ {[%emt 0:00:57]} Nf6 {[%emt 0:00:03]} 64. Re7+ {[%emt 0:00:24]} Rxe7+ {[%emt 0:00:03]} 65. dxe7 {[%emt 0:00:07]} Kxe7 {[%emt 0:00:06]} 66. Rxf4 {[%emt 0:00:03] KR-KN} Ke6 {[%emt 0:00:11]} 67. Ra4 {[%emt 0:00:16]} Kf5 {[%emt 0:00:37]} 68. Kf2 {[%emt 0:00:26]} Kg5 {[%emt 0:01:01]} 69. Rc4 {[%emt 0:01:13]} Kf5 {[%emt 0:00:24]} 70. Rd4 {[%emt 0:01:00]} Ke5 {[%emt 0:00:10]} 71. Ra4 {[%emt 0:00:34]} Kf5 {[%emt 0:00:04]} 72. Kg3 {[%emt 0:00:41]} Nh5+ {[%emt 0:00:09]} 73. Kh4 {[%emt 0:00:16]} Nf6 {[%emt 0:00:05]} 74. f4 {[%emt 0:00:35]} Nd7 {[%emt 0:03:15]} 75. Kg3 {[%emt 0:00:16]} Nf8 {[%emt 0:00:55]} 76. Kf3 {[%emt 0:00:15]} Ne6 {[%emt 0:00:21]} 77. Ra5+ {[%emt 0:00:14]} Kf6 {[%emt 0:00:01]} 78. Kg4 {[%emt 0:00:50]} Ng7 {[%emt 0:00:39]} 79. Ra6+ {[%emt 0:00:35]} Kf7 {[%emt 0:00:12]} 80. Ra7+ {[%emt 0:00:32]} Kf6 {[%emt 0:00:09] [#]} 81. Rxg7 $1 {[%emt 0:00:16]} Kxg7 {[%emt 0:00:02]} 82. Kg5 {[%emt 0:00:08] Weighted Error Value: White=0.27 (precise) /Black=0.62} 1-0

[Event "44th Chess Olympiad Women 2022"]
[Site "Chennai"]
[Date "2022.08.09"]
[Round "11.20"]
[White "Zahedifar, Anahita"]
[Black "Avelino, Camila Biscaya"]
[Result "1-0"]
[ECO "E73"]
[WhiteElo "2160"]
[BlackElo "1863"]
[Annotator "RC"]
[PlyCount "67"]
[EventDate "2022.07.29"]
[EventType "team-tourn"]
[EventCountry "IND"]
[SourceTitle "playchess.com"]
[Source "ChessBase"]
[SourceQuality "1"]
[WhiteTeam "Iran"]
[BlackTeam "Portugal"]
[WhiteTeamCountry "IRI"]
[BlackTeamCountry "POR"]
[TimeControl "40/5400+30:1800+30"]

1. d4 {[%emt 0:00:31]} Nf6 {[%emt 0:00:43]} 2. c4 {[%emt 0:00:05]} g6 {[%emt 0:00:24]} 3. h4 {[%emt 0:00:14]} Bg7 {[%emt 0:00:57]} 4. Nc3 {[%emt 0:00:07]} d6 {[%emt 0:00:57]} 5. e4 {[%emt 0:00:08]} O-O {[%emt 0:00:14]} 6. Be2 {[%emt 0:00:30]} c5 {[%emt 0:05:20]} 7. d5 {[%emt 0:01:28]} e6 {[%emt 0:00:33]} 8. h5 {[%emt 0:01:33]} exd5 {[%emt 0:01:30]} 9. exd5 {[%emt 0:00:10]} Re8 {[%emt 0:02:34]} 10. hxg6 {[%emt 0:03:43]} fxg6 {[%emt 0:00:46]} 11. Nf3 {[%emt 0:04:55]} Nbd7 {[%emt 0:05:53]} 12. Kf1 {[%emt 0:06:16]} Ne4 {[%emt 0:11:06]} 13. Nxe4 {[%emt 0:01:35]} Rxe4 {[%emt 0:00:09]} 14. Ng5 {[%emt 0:07:47]} Rd4 {[%emt 0:07:02]} 15. Qb3 {[%emt 0:02:23]} Nf6 {[%emt 0:04:08]} 16. Be3 {[%emt 0:02:02]} Ne4 {[%emt 0:00:56]} 17. Nf3 {[%emt 0:02:24]} Qf8 {[%emt 0:02:54]} 18. Bd3 {[%emt 0:17:23]} Rxd3 {[%emt 0:05:04]} 19. Qxd3 {[%emt 0:00:12]} Bxb2 {[%emt 0:00:59]} 20. Re1 {[%emt 0:09:33]} Bf5 {[%emt 0:04:52]} 21. Qb3 {[%emt 0:00:23]} Bg7 {[%emt 0:03:12]} 22. Kg1 {[%emt 0:04:50]} Re8 {[%emt 0:16:54]} 23. Nh4 {[%emt 0:04:16]} Bc8 {[%emt 0:04:34]} 24. Qc2 {[%emt 0:04:27]} Bc3 {[%emt 0:13:07]} 25. Re2 {[%emt 0:04:33]} Bg4 {[%emt 0:02:21]} 26. Bh6 {[%emt 0:02:00]} Qxh6 {[%emt 0:02:20]} 27. Rxe4 {[%emt 0:00:28]} Rxe4 {[%emt 0:00:38]} 28. Qxe4 {[%emt 0:00:05]} Be5 {[%emt 0:00:22]} 29. g3 {[%emt 0:00:40]} Bh5 {[%emt 0:02:15]} 30. f4 {[%emt 0:00:51]} Bd4+ {[%emt 0:01:10]} 31. Kg2 {[%emt 0:00:16]} Qf8 {[%emt 0:00:45]} 32. Qe6+ {[%emt 0:00:28]} Kg7 {[%emt 0:00:23]} 33. Re1 {[%emt 0:02:31]} Bf6 {[%emt 0:00:24]} 34. Qd7+ {[%emt 0:00:32]} 1-0